bitfinex/quotes_BTCUSD_20260104
["timestamp","ask_amount","ask_price","bid_price","bid_amount"]
[1767542504807,0.0109523,91305.0,91297.0,0.0004]
[1767542505002,0.01095278,91301.0,91297.0,0.0004]
[1767542505262,0.05476523,91299.0,91297.0,0.0004]
[1767542505443,0.0109529,91300.0,91299.0,0.000999]
[1767542505590,0.06571725,91301.0,91299.0,0.000999]
[1767542506067,0.05476571,91298.0,91297.0,0.0004]
[1767542506219,0.0109529,91300.0,91297.0,0.0004]
[1767542506414,0.06571742,91300.0,91297.0,0.0004]
[1767542506621,0.0109529,91300.0,91297.0,0.0004]
[1767542506792,0.06571712,91301.0,91297.0,0.0004]
[1767542507173,0.06571712,91301.0,91297.0,0.01135326]
[1767542507312,0.06571712,91301.0,91297.0,0.0004]
[1767542507514,0.06571455,91304.0,91301.0,0.000999]
[1767542508113,0.06571339,91306.0,91301.0,0.01095278]
[1767542508319,0.01095206,91307.0,91302.0,0.0547633]
[1767542508661,3.4e-07,91308.0,91302.0,0.01095266]
[1767542508837,3.4e-07,91308.0,91307.0,0.000999]
[1767542509238,3.4e-07,91308.0,91307.0,0.04938174]
[1767542509436,3.4e-07,91308.0,91307.0,0.05476031]
[1767542509887,3.4e-07,91308.0,91307.0,0.04938174]
[1767542510834,1e-08,91309.0,91307.0,0.05476031]
[1767542511036,1e-08,91309.0,91308.0,0.05475971]
[1767542511037,0.04713602,91309.0,91308.0,0.05475971]
[1767542511174,0.04613702,91309.0,91308.0,0.05475971]
[1767542511525,0.04613702,91309.0,91308.0,0.02313276]
[1767542512670,1.389e-05,91309.0,91308.0,0.02313276]
[1767542513085,0.000999,91308.0,91306.0,0.01095218]
[1767542513264,1.389e-05,91309.0,91306.0,0.01095218]
[1767542513677,1.389e-05,91309.0,91306.0,0.06571286]
[1767542513919,1.389e-05,91309.0,91307.0,0.05476014]
[1767542515323,1.389e-05,91309.0,91302.0,0.13583584]
[1767542515491,1.389e-05,91309.0,91307.0,0.05476014]
[1767542515695,1.389e-05,91309.0,91308.0,0.05475971]
[1767542517727,1.389e-05,91309.0,91308.0,0.10414145]
[1767542525355,1.389e-05,91309.0,91308.0,0.02578592]
[1767542525710,0.00012189,91309.0,91303.0,0.06571524]
[1767542525834,0.00012189,91309.0,91306.0,0.06571291]
[1767542526034,0.00012189,91309.0,91306.0,0.06571272]
[1767542526234,0.00012189,91309.0,91306.0,0.06571298]
[1767542526438,0.00012189,91309.0,91304.0,0.04942343]
[1767542526839,0.00012189,91309.0,91307.0,0.10418374]
[1767542526840,8.9e-07,91309.0,91307.0,0.10418374]
[1767542527061,8.9e-07,91309.0,91308.0,0.10418314]
[1767542527494,0.06625441,91320.0,91317.0,0.04942343]
[1767542527792,0.01095062,91319.0,91314.0,0.01095122]
[1767542528094,0.000121,91317.0,91314.0,0.01095122]
[1767542528292,0.000121,91317.0,91310.0,0.34324758]
[1767542528293,0.06570618,91316.0,91310.0,0.0109517]
[1767542528496,0.05475554,91315.0,91310.0,0.0109517]
[1767542528728,0.05466683,91315.0,91310.0,0.0109517]
[1767542528961,0.01095182,91309.0,91303.0,0.06037597]
[1767542529128,0.01095182,91309.0,91303.0,0.06073631]
[1767542529129,0.01095194,91308.0,91303.0,0.06073631]
[1767542529369,0.06571168,91308.0,91303.0,0.06073631]
[1767542529520,0.06571168,91308.0,91304.0,0.04942343]
[1767542529741,0.05476093,91306.0,91304.0,0.04942343]
[1767542530004,0.01095218,91306.0,91303.0,0.00036034]
[1767542530155,0.000121,91304.0,91303.0,0.00036034]
[1767542530506,0.01095338,91296.0,91293.0,0.04942343]
[1767542530781,0.06608042,91296.0,91293.0,0.04942343]
[1767542530995,0.0328723,91305.0,91296.0,0.000878]
[1767542531197,0.05476418,91301.0,91296.0,0.01105596]
[1767542531356,0.01095254,91303.0,91298.0,0.01095314]
[1767542531537,0.01095266,91302.0,91297.0,0.05307635]
[1767542531741,0.01095254,91303.0,91298.0,0.05476557]
[1767542531938,0.02192,91305.0,91300.0,0.0109529]
[1767542532144,0.0328723,91305.0,91300.0,0.0109529]
[1767542532451,0.01095242,91304.0,91299.0,0.06571793]
[1767542532648,0.01095254,91303.0,91298.0,0.06571882]
[1767542532857,0.06571526,91303.0,91298.0,0.06571882]
[1767542533653,0.06571614,91302.0,91297.0,0.01095326]
[1767542533853,0.01095266,91302.0,91297.0,0.01095326]
[1767542534060,0.01095266,91302.0,91301.0,0.00053651]
[1767542534272,0.01095266,91302.0,91301.0,0.00041551]
[1767542534454,0.06571597,91302.0,91301.0,0.00041551]
[1767542535182,0.01095266,91302.0,91301.0,0.00041551]
[1767542535386,0.0109523,91305.0,91302.0,0.05042243]
[1767542535583,0.21902809,91313.0,91303.0,0.06571525]
[1767542535584,0.02192,91304.0,91303.0,0.06571525]
[1767542535784,0.00990926,91304.0,91303.0,0.06571525]
[1767542536013,0.00990926,91304.0,91302.0,0.10418667]
[1767542536268,0.02192,91306.0,91302.0,0.06037609]
[1767542536475,0.02192,91306.0,91303.0,0.01095254]
[1767542536914,0.0109523,91305.0,91302.0,0.04942343]
[1767542537465,0.03287218,91306.0,91302.0,0.04942343]
[1767542537667,0.05476236,91304.0,91302.0,0.04942343]
[1767542537777,0.01095242,91304.0,91300.0,0.04942343]
[1767542537984,0.06571395,91305.0,91300.0,0.06037633]
[1767542538297,0.01095242,91304.0,91300.0,0.04942343]
[1767542538499,0.0109523,91305.0,91301.0,0.01095278]
[1767542538717,0.08763312,91306.0,91301.0,0.01095278]
[1767542538924,0.08763312,91306.0,91301.0,0.06037621]
[1767542539103,0.02192,91306.0,91302.0,0.06037609]
[1767542539503,0.02192,91306.0,91302.0,0.11513939]
[1767542539709,0.02192,91306.0,91302.0,0.06037609]
[1767542540147,0.02192,91306.0,91303.0,0.01095254]
[1767542540345,0.020921,91306.0,91303.0,0.01095254]
[1767542540807,0.02083229,91306.0,91305.0,0.05476151]
[1767542541002,0.01253277,91306.0,91305.0,0.05476151]
[1767542541180,0.01253277,91306.0,91305.0,0.10418494]
[1767542541387,0.01253277,91306.0,91305.0,0.05476151]
[1767542541651,0.01253277,91306.0,91305.0,0.05515781]
[1767542542804,0.01244404,91306.0,91305.0,0.05515781]
[1767542543169,0.01244404,91306.0,91305.0,0.10458124]
[1767542544367,0.01244404,91306.0,91305.0,0.0003963]
[1767542544518,0.01237538,91306.0,91305.0,0.0003963]
[1767542544726,0.01237538,91306.0,91304.0,0.05476156]
[1767542544727,0.0006027,91305.0,91304.0,0.05476156]
[1767542545150,0.01237538,91306.0,91304.0,0.05476156]
[1767542545365,0.01237538,91306.0,91305.0,0.05476151]
[1767542545727,0.01228665,91306.0,91303.0,0.06571517]
[1767542545949,0.01228665,91306.0,91301.0,0.17104537]
[1767542546368,0.000603,91301.0,91299.0,0.04942343]
[1767542546573,0.000603,91301.0,91298.0,0.06037657]
[1767542546769,0.01095266,91302.0,91298.0,0.04942343]
[1767542546992,0.01095254,91303.0,91294.0,0.01095362]
[1767542546993,0.06571526,91303.0,91294.0,0.01095362]
[1767542547218,4.73e-05,91303.0,91299.0,0.01095302]
[1767542547459,0.01099984,91303.0,91299.0,0.04942343]
[1767542547632,4.73e-05,91303.0,91299.0,0.10418853]
[1767542547835,4.73e-05,91303.0,91299.0,0.0547651]
[1767542548553,4.73e-05,91303.0,91300.0,0.06571734]
[1767542548719,4.73e-05,91303.0,91301.0,0.05476389]
[1767542548920,4.73e-05,91303.0,91300.0,0.06571734]
[1767542549132,4.73e-05,91303.0,91299.0,0.065717]
[1767542549336,4.73e-05,91303.0,91300.0,0.0109529]
[1767542549752,3e-07,91303.0,91301.0,0.05476383]
[1767542550963,3e-07,91303.0,91302.0,0.05476331]
[1767542551186,3e-07,91303.0,91301.0,0.05476383]
[1767542551349,3e-07,91303.0,91300.0,0.06571737]
[1767542551761,3e-07,91303.0,91301.0,0.05476369]
[1767542552121,3e-07,91303.0,91300.0,0.0109529]
[1767542552122,0.00065,91301.0,91298.0,0.06571765]
[1767542552557,3e-07,91303.0,91298.0,0.01095314]
[1767542552770,0.0657156,91303.0,91297.0,0.06571942]
[1767542552939,0.0657156,91303.0,91298.0,0.01095314]
[1767542553140,0.01095284,91303.0,91299.0,0.04945167]
[1767542553464,0.06571387,91305.0,91300.0,0.04945167]
[1767542553697,0.01095254,91303.0,91300.0,0.04880167]
[1767542553816,0.01095242,91304.0,91300.0,0.04880167]
[1767542554027,0.01095254,91303.0,91300.0,0.04880167]
[1767542554260,0.01095242,91304.0,91300.0,0.04880167]
[1767542554665,0.06571387,91305.0,91300.0,0.04880167]
[1767542554873,0.06571387,91305.0,91300.0,0.05975457]
[1767542556524,0.01095242,91304.0,91300.0,0.04880167]
[1767542557851,0.01095278,91301.0,91295.0,0.06572101]
[1767542558212,0.01095266,91302.0,91297.0,0.01095326]
[1767542558841,0.01095278,91301.0,91296.0,0.06572023]
[1767542559055,0.01095278,91301.0,91296.0,0.01095338]
[1767542559269,0.01095254,91303.0,91297.0,0.01095326]
[1767542559478,0.06571576,91303.0,91298.0,0.01095314]
[1767542559884,0.01095254,91303.0,91298.0,0.01095314]
[1767542560438,0.01095254,91303.0,91297.0,0.06571934]
[1767542560439,0.01095266,91302.0,91297.0,0.06571934]
[1767542560584,0.06571532,91303.0,91298.0,0.01095314]
[1767542561559,0.01095242,91304.0,91298.0,0.06571881]
[1767542562391,0.01095242,91304.0,91299.0,0.01095302]
[1767542562539,0.01095254,91303.0,91298.0,0.01095314]
[1767542563485,0.01095254,91303.0,91298.0,0.05626869]
[1767542564088,0.06571508,91304.0,91298.0,0.11103428]
[1767542564638,0.06571221,91308.0,91301.0,0.01095278]
[1767542564838,0.01086333,91307.0,91304.0,0.000999]
[1767542565057,0.06571381,91305.0,91298.0,0.04531555]
[1767542565275,0.01095254,91303.0,91293.0,0.02192]
[1767542565484,0.01095254,91303.0,91298.0,0.01095314]
[1767542566045,0.06571539,91303.0,91298.0,0.01095314]
[1767542566278,0.01095254,91303.0,91298.0,0.01095314]
[1767542566655,0.06571453,91304.0,91299.0,0.01095302]
[1767542566858,0.01095254,91303.0,91298.0,0.06571852]
[1767542567014,0.01095254,91303.0,91297.0,0.06571953]
[1767542567220,0.01095254,91303.0,91298.0,0.01095314]
[1767542567758,0.01095266,91302.0,91297.0,0.01095326]
[1767542568132,0.0657161,91302.0,91296.0,0.06572021]
[1767542568312,0.01095266,91302.0,91297.0,0.01095326]
[1767542569061,0.01095278,91301.0,91295.0,0.06572043]
[1767542569267,0.06571601,91302.0,91296.0,0.01095338]
[1767542569440,0.01095278,91301.0,91296.0,0.01095338]
[1767542569624,0.01095266,91302.0,91297.0,0.01095326]
[1767542569805,0.01095266,91302.0,91296.0,0.05476682]
[1767542570022,0.01095206,91307.0,91299.0,0.01095302]
[1767542570233,0.0109523,91305.0,91300.0,0.0109529]
[1767542570439,0.01095242,91304.0,91298.0,0.05476552]
[1767542570684,0.01095242,91304.0,91299.0,0.01095302]
[1767542570864,0.01095254,91303.0,91297.0,0.06571951]
[1767542571063,0.06571455,91304.0,91298.0,0.06571878]
[1767542571389,0.06571527,91303.0,91298.0,0.01095314]
[1767542571588,0.01095266,91302.0,91297.0,0.01095326]
[1767542571891,0.06571527,91303.0,91297.0,0.06571953]
[1767542572092,0.01095254,91303.0,91298.0,0.01095314]
[1767542572292,0.06571529,91303.0,91298.0,0.01095314]
[1767542572711,0.06571529,91303.0,91297.0,0.06571953]
[1767542572915,0.06571529,91303.0,91297.0,0.01095326]
[1767542573286,0.06571601,91302.0,91297.0,0.01095326]
[1767542573488,0.01095302,91299.0,91293.0,4.73e-05]
[1767542573675,0.05921547,91296.0,91293.0,4.73e-05]
[1767542573880,0.04826209,91296.0,91290.0,0.03892825]
[1767542574080,0.0109535,91295.0,91289.0,0.0657253]
[1767542574280,0.01101251,91296.0,91290.0,0.0109541]
[1767542574599,0.01101251,91296.0,91289.0,0.01095422]
[1767542574600,0.06577999,91296.0,91289.0,0.01095422]
[1767542574795,0.01095362,91294.0,91289.0,0.01095422]
[1767542574975,0.01095362,91294.0,91288.0,0.06572603]
[1767542575181,0.01095362,91294.0,91286.0,0.03287458]
[1767542575182,0.0657219,91294.0,91287.0,0.06572665]
[1767542575426,5.913e-05,91296.0,91289.0,0.01095422]
[1767542575627,0.01095362,91294.0,91288.0,0.06572593]
[1767542575830,0.01095362,91294.0,91284.0,0.01095482]
[1767542575831,0.000999,91288.0,91282.0,0.01095506]
[1767542576034,0.000999,91288.0,91285.0,0.04531555]
[1767542576239,0.000999,91288.0,91286.0,0.04531555]
[1767542576431,0.06572319,91292.0,91286.0,0.04531555]
[1767542576639,0.01095386,91292.0,91286.0,0.05627013]
[1767542576837,0.01095386,91292.0,91287.0,0.05627001]
[1767542577096,0.06572177,91294.0,91288.0,0.01095434]
[1767542577408,0.06572177,91294.0,91289.0,0.04531555]
[1767542577409,0.01095362,91294.0,91289.0,0.04531555]
[1767542578246,0.03287362,91294.0,91289.0,0.04531555]
[1767542578448,0.01095374,91293.0,91289.0,0.04531555]
[1767542578653,0.06572246,91293.0,91289.0,0.04531555]
[1767542578874,0.01095386,91292.0,91289.0,0.04531555]
[1767542579064,0.06572246,91293.0,91289.0,0.04531555]
[1767542579281,0.01095374,91293.0,91289.0,0.04531555]
[1767542580247,0.03287362,91294.0,91289.0,0.04531555]
[1767542580445,0.02192,91294.0,91290.0,0.0109541]
[1767542580733,5.913e-05,91296.0,91295.0,0.05476751]
[1767542580937,0.08763606,91302.0,91295.0,0.05476751]
[1767542581180,0.05476401,91301.0,91295.0,0.04646921]
[1767542581373,0.08763606,91302.0,91296.0,0.01095338]
[1767542581588,0.21903412,91310.0,91297.0,0.01095326]
[1767542581773,0.01095134,91313.0,91306.0,0.01095218]
[1767542582093,0.02192,91315.0,91308.0,0.01095194]
[1767542582419,0.02192,91315.0,91309.0,0.05475852]
[1767542582910,0.02192,91315.0,91310.0,0.05475851]
[1767542583146,0.0004625,91320.0,91317.0,0.05742007]
[1767542583335,0.000999,91317.0,91316.0,0.06570589]
[1767542583460,0.02192,91322.0,91320.0,0.04646921]
[1767542584372,0.0109517,91310.0,91302.0,0.01095266]
[1767542584490,0.01095122,91314.0,91306.0,0.04646921]
[1767542584846,0.06570863,91313.0,91306.0,0.05742139]
[1767542585045,0.01095134,91313.0,91306.0,0.05742139]
[1767542585202,0.01095146,91312.0,91306.0,0.11218227]
[1767542585408,0.01095158,91311.0,91306.0,0.04646921]
[1767542585639,0.04697904,91310.0,91305.0,0.0109523]
[1767542585788,0.0657043,91319.0,91313.0,0.04646921]
[1767542586617,0.01095062,91319.0,91313.0,0.04646921]
[1767542586836,0.0109505,91320.0,91316.0,0.04646921]
[1767542587041,0.01095062,91319.0,91316.0,0.04646921]
[1767542587446,0.06570384,91319.0,91316.0,0.04646921]
[1767542587705,0.01095062,91319.0,91316.0,0.04646921]
[1767542587907,0.05475388,91318.0,91316.0,0.04646921]
[1767542589474,0.05475431,91317.0,91316.0,0.04646921]
[1767542589671,0.02192,91322.0,91318.0,0.04646921]
[1767542589869,0.07667162,91322.0,91318.0,0.04646921]
[1767542590103,0.01095038,91321.0,91318.0,0.04646921]
[1767542590276,0.02192,91322.0,91318.0,0.04646921]
[1767542590480,0.01095038,91321.0,91318.0,0.04646921]
[1767542591086,0.08762164,91322.0,91318.0,0.04646921]
[1767542591509,0.02192,91322.0,91318.0,0.04646921]
[1767542591824,0.03187126,91322.0,91318.0,0.04646921]
[1767542592818,0.020921,91322.0,91320.0,0.04646921]
[1767542592989,0.020921,91322.0,91321.0,0.04646921]
[1767542594785,0.020921,91322.0,91321.0,0.10122112]
[1767542594987,0.0004,91327.0,91324.0,0.04646921]
[1767542595209,0.06569657,91329.0,91327.0,0.04646921]
[1767542595412,0.01094846,91337.0,91334.0,0.04646921]
[1767542595595,0.01094894,91333.0,91327.0,0.34308262]
[1767542595803,0.06569465,91332.0,91328.0,0.04646921]
[1767542596038,0.01094918,91331.0,91328.0,0.04646921]
[1767542596242,0.05474653,91330.0,91328.0,0.04646921]
[1767542596397,0.05467786,91330.0,91328.0,0.04646921]
[1767542596598,0.01094918,91331.0,91320.0,0.40050233]
[1767542596599,0.01094954,91328.0,91320.0,0.40050233]
[1767542596799,0.05474832,91327.0,91321.0,0.06838921]
[1767542597102,0.06569709,91329.0,91323.0,0.11217003]
[1767542597433,0.01094894,91333.0,91329.0,0.000999]
[1767542597594,0.01094906,91332.0,91329.0,0.000999]
[1767542597809,0.06569473,91332.0,91329.0,0.000999]
[1767542598012,0.0109493,91330.0,91324.0,0.04646921]
[1767542598233,0.01094918,91331.0,91325.0,0.05741911]
[1767542598675,0.01086044,91331.0,91325.0,0.05741911]
[1767542598817,0.01086044,91331.0,91327.0,0.04646921]
[1767542599023,0.0109493,91330.0,91327.0,0.04646921]
[1767542599228,0.05474772,91328.0,91322.0,0.04646921]
[1767542599425,0.06569726,91328.0,91322.0,0.05741947]
[1767542599626,0.01088063,91330.0,91326.0,0.04646921]
[1767542600051,0.0656944,91332.0,91326.0,0.04646921]
[1767542600267,0.01094918,91331.0,91326.0,0.05741899]
[1767542600477,0.0109493,91330.0,91326.0,0.04646921]
[1767542600701,0.0656951,91331.0,91326.0,0.04646921]
[1767542600892,0.01094942,91329.0,91326.0,0.04646921]
[1767542601288,0.06569676,91329.0,91326.0,0.04646921]
[1767542601465,0.01094942,91329.0,91326.0,0.04646921]
[1767542602051,0.06569658,91329.0,91326.0,0.04646921]
[1767542602325,0.0109493,91330.0,91326.0,0.04646921]
[1767542602452,0.06569519,91331.0,91326.0,0.04646921]
[1767542603592,0.0109493,91330.0,91326.0,0.04646921]
[1767542603912,0.01094942,91329.0,91326.0,0.04646921]
[1767542604296,0.05474826,91328.0,91326.0,0.04646921]
[1767542604480,0.05474832,91327.0,91326.0,0.04646921]
[1767542604677,0.05474826,91328.0,91326.0,0.04646921]
[1767542605262,0.01094942,91329.0,91326.0,0.04646921]
[1767542605463,0.01094942,91329.0,91323.0,0.01095014]
[1767542605737,0.01086055,91330.0,91324.0,0.05474989]
[1767542605940,0.01086055,91330.0,91323.0,0.01095014]
[1767542605941,0.04810026,91329.0,91323.0,0.01095014]
[1767542606082,0.04710126,91329.0,91326.0,0.01094978]
[1767542606281,0.04710126,91329.0,91325.0,0.0109499]
[1767542606484,0.04710126,91329.0,91324.0,0.01095002]
[1767542606796,0.01086067,91329.0,91325.0,0.04646921]
[1767542607213,0.0109493,91330.0,91325.0,0.05741911]
[1767542607778,0.01094954,91328.0,91325.0,0.04547021]
[1767542609103,0.0109493,91330.0,91325.0,0.04547021]
[1767542609310,0.06569783,91328.0,91325.0,0.04547021]
[1767542609713,0.01094954,91328.0,91325.0,0.04547021]
[1767542610321,0.06569737,91328.0,91325.0,0.04547021]
[1767542610533,0.01094954,91328.0,91325.0,0.04547021]
[1767542610737,0.0109499,91325.0,91322.0,0.04985267]
[1767542611131,0.01094978,91326.0,91322.0,0.04985267]
[1767542611542,0.06569892,91326.0,91322.0,0.04985267]
[1767542612279,0.01094978,91326.0,91322.0,0.04985267]
[1767542612885,0.06569831,91328.0,91322.0,0.06080293]
[1767542613081,0.05474648,91332.0,91328.0,0.000999]
[1767542613287,0.0109493,91330.0,91325.0,0.06080257]
[1767542613489,0.01094942,91329.0,91323.0,0.08762031]
[1767542613691,0.06569659,91329.0,91324.0,0.01095002]
[1767542613906,0.06569659,91329.0,91323.0,0.08272281]
[1767542613907,0.06569683,91329.0,91323.0,0.08272281]
[1767542614275,0.06569614,91330.0,91325.0,0.04972724]
[1767542614698,0.01094918,91331.0,91325.0,0.04972724]
[1767542614863,0.0109493,91330.0,91325.0,0.04972724]
[1767542615065,0.01094942,91329.0,91325.0,0.04972724]
[1767542615819,0.01094954,91328.0,91325.0,0.04972724]
[1767542616032,0.0656968,91329.0,91325.0,0.04972724]
[1767542616225,0.01094942,91329.0,91325.0,0.04972724]
[1767542616423,0.06569622,91331.0,91329.0,0.000999]
[1767542616631,0.0109493,91330.0,91325.0,0.04972724]
[1767542616828,0.01094942,91329.0,91325.0,0.04972724]
[1767542617006,0.01094954,91328.0,91325.0,0.04972724]
[1767542617207,0.06569726,91328.0,91325.0,0.04972724]
[1767542617577,0.06569736,91328.0,91325.0,0.02192]
[1767542617775,0.06569736,91328.0,91324.0,0.02192]
[1767542617776,0.06569798,91327.0,91324.0,0.02192]
[1767542618114,0.06569912,91327.0,91324.0,0.02192]
[1767542619415,0.05474908,91326.0,91324.0,0.02192]
[1767542619618,0.04817427,91326.0,91324.0,0.02192]
[1767542619838,0.01094978,91326.0,91324.0,0.07164724]
[1767542619980,0.06569912,91327.0,91323.0,0.02192]
[1767542620394,0.06569698,91329.0,91324.0,0.01095002]
[1767542620395,0.01094942,91329.0,91324.0,0.01095002]
[1767542620587,0.01094918,91331.0,91327.0,0.000999]
[1767542620763,0.0109493,91330.0,91326.0,0.00065658]
[1767542620982,0.01094918,91331.0,91326.0,0.00065658]
[1767542621182,0.01094906,91332.0,91326.0,0.06635486]
[1767542621318,0.06569366,91333.0,91327.0,0.06569792]
[1767542621543,0.06469466,91333.0,91327.0,0.06569792]
[1767542621720,0.01109954,91338.0,91332.0,0.05474526]
[1767542621921,0.0001512,91338.0,91333.0,0.06067618]
[1767542622140,0.0001512,91338.0,91335.0,0.0109487]
[1767542622561,0.0001512,91338.0,91336.0,0.05474267]
[1767542622735,0.0004,91351.0,91336.0,0.05474267]
[1767542622736,0.01094702,91349.0,91341.0,0.06067522]
[1767542622951,0.06579023,91349.0,91344.0,0.04972724]
[1767542623152,0.00010802,91349.0,91346.0,0.06568424]
[1767542623348,0.0004,91351.0,91349.0,0.04972724]
[1767542623553,0.01094594,91358.0,91352.0,0.04972724]
[1767542623798,0.01094594,91358.0,91356.0,0.0480241]
[1767542623936,0.06567573,91358.0,91356.0,0.0424033]
[1767542624315,0.06567573,91358.0,91352.0,0.0606739]
[1767542624492,0.00023017,91359.0,91353.0,0.01094654]
[1767542624493,0.01117599,91359.0,91353.0,0.01094654]
[1767542624653,0.06590523,91359.0,91353.0,0.01094654]
[1767542624876,0.00857377,91358.0,91354.0,0.05468684]
[1767542625236,0.00023017,91359.0,91354.0,0.05468684]
[1767542625237,0.00023017,91359.0,91358.0,0.05072624]
[1767542625396,0.01094523,91364.0,91359.0,0.06067306]
[1767542625717,0.03286499,91366.0,91363.0,0.04972724]
[1767542625871,0.01094499,91366.0,91363.0,0.049504]
[1767542626071,0.06566998,91366.0,91363.0,0.049504]
[1767542626471,0.02192,91372.0,91365.0,0.04972724]
[1767542626677,0.05472375,91368.0,91367.0,0.04972724]
[1767542626882,0.05472375,91368.0,91367.0,0.049682]
[1767542627637,0.06566825,91370.0,91367.0,0.049682]
[1767542627776,0.06566825,91370.0,91368.0,0.03205572]
[1767542627984,4.056e-05,91371.0,91368.0,0.03205572]
[1767542628413,0.01098495,91371.0,91368.0,0.03205572]
[1767542628567,4.056e-05,91371.0,91357.0,0.0547302]
[1767542628769,0.01094558,91361.0,91357.0,0.04972724]
[1767542629014,0.01094582,91359.0,91354.0,0.01094642]
[1767542629255,0.01094714,91348.0,91342.0,0.01094786]
[1767542629599,0.05473459,91350.0,91348.0,0.000999]
[1767542630002,0.01094678,91351.0,91290.0,1.02850284]
[1767542630003,0.05473693,91346.0,91344.0,0.04972724]
[1767542630134,0.05473693,91346.0,91344.0,0.04983526]
[1767542630355,0.01094726,91347.0,91344.0,0.00010802]
[1767542630562,0.01094726,91347.0,91345.0,0.04972724]
[1767542630769,0.01094714,91348.0,91345.0,0.04972724]
[1767542630969,0.05473639,91347.0,91345.0,0.04972724]
[1767542631230,0.05473753,91345.0,91344.0,0.00010802]
[1767542631574,0.05474122,91339.0,91337.0,0.34283428]
[1767542631752,0.06568931,91340.0,91332.0,0.0606763]
[1767542631954,0.0656787,91339.0,91334.0,0.04972724]
[1767542632153,0.05473048,91339.0,91336.0,0.04972724]
[1767542632401,0.05968951,91340.0,91334.0,0.06569288]
[1767542632603,0.01094822,91339.0,91333.0,0.06569359]
[1767542632913,0.01094822,91339.0,91333.0,0.01094894]
[1767542632914,0.06568945,91339.0,91333.0,0.01094894]
[1767542633073,0.06568801,91341.0,91334.0,0.01094882]
[1767542633274,0.01094822,91339.0,91334.0,0.01094882]
[1767542633468,0.0109481,91340.0,91334.0,0.01094882]
[1767542633791,0.01094798,91341.0,91336.0,0.01094858]
[1767542633994,0.11442877,91342.0,91336.0,0.01094858]
[1767542634202,0.0109481,91340.0,91334.0,0.01094882]
[1767542634559,0.0109481,91340.0,91335.0,0.0109487]
[1767542634758,0.01094798,91341.0,91335.0,0.0109487]
[1767542634982,0.0109481,91340.0,91334.0,0.01094882]
[1767542635182,0.01094786,91342.0,91335.0,0.0109487]
[1767542635402,0.01094726,91347.0,91341.0,0.01094798]
[1767542635602,0.01105522,91347.0,91341.0,0.01094798]
[1767542635779,0.01105522,91347.0,91343.0,0.01094774]
[1767542635780,0.00010796,91347.0,91343.0,0.01094774]
[1767542636504,0.00010796,91347.0,91342.0,0.06568715]
[1767542636721,0.01105522,91347.0,91342.0,0.01094786]
[1767542637240,0.01105522,91347.0,91339.0,0.05474086]
[1767542637241,0.06568512,91345.0,91338.0,0.01094834]
[1767542637446,0.000999,91342.0,91337.0,0.37570274]
[1767542637595,0.01094786,91342.0,91337.0,0.03286846]
[1767542637807,0.01094774,91343.0,91337.0,0.03286846]
[1767542638416,0.06568651,91343.0,91337.0,0.03286846]
[1767542638780,0.01094798,91341.0,91334.0,0.01094882]
[1767542639029,0.000999,91337.0,91335.0,0.02192]
[1767542639229,0.06568556,91345.0,91337.0,0.06569067]
[1767542639401,0.06579182,91347.0,91339.0,0.06568899]
[1767542639607,0.01094738,91346.0,91340.0,0.0109481]
[1767542639878,0.06579157,91347.0,91341.0,0.01094798]
[1767542640048,0.01094738,91346.0,91341.0,0.01094798]
[1767542640278,0.01105522,91347.0,91342.0,0.01094786]
[1767542640428,0.00010796,91347.0,91344.0,0.04538949]
[1767542640628,0.00010796,91347.0,91342.0,0.01094786]
[1767542640629,0.01094906,91332.0,91323.0,0.05633963]
[1767542640830,0.01094906,91332.0,91326.0,0.04604607]
[1767542641070,0.0109493,91330.0,91326.0,0.04604607]
[1767542641271,0.01094942,91329.0,91326.0,0.04538949]
[1767542641638,0.000999,91326.0,91324.0,0.11124049]
[1767542641803,0.00079454,91326.0,91324.0,0.0001512]
[1767542641963,0.0109493,91330.0,91324.0,0.01110122]
[1767542642166,0.04734326,91329.0,91323.0,0.01570026]
[1767542642563,0.21897024,91337.0,91323.0,0.01570026]
[1767542642564,0.01094786,91342.0,91334.0,0.01094882]
[1767542642788,0.03286738,91346.0,91334.0,0.01094882]
[1767542642989,0.0156872,91342.0,91337.0,0.04538949]
[1767542643335,0.01094834,91338.0,91335.0,0.04538949]
[1767542643571,0.01094858,91336.0,91329.0,0.06569535]
[1767542643790,0.01094858,91336.0,91328.0,0.40853128]
[1767542643791,0.01094882,91334.0,91328.0,0.40853128]
[1767542644017,0.01094882,91334.0,91329.0,0.05633891]
[1767542644227,0.01094846,91337.0,91328.0,0.01094954]
[1767542644434,0.06569132,91337.0,91331.0,0.01094918]
[1767542644638,0.01094834,91338.0,91332.0,0.01094906]
[1767542644872,0.000488,91332.0,91331.0,0.11108405]
[1767542645081,0.000488,91332.0,91331.0,0.06569456]
[1767542645299,0.01094846,91337.0,91332.0,0.01094906]
[1767542645517,0.0582928,91328.0,91327.0,0.34283428]
[1767542645727,0.04734326,91328.0,91322.0,0.05475125]
[1767542645935,0.00107113,91326.0,91322.0,0.06570157]
[1767542646154,0.00055913,91326.0,91322.0,0.01095026]
[1767542646561,0.01094942,91329.0,91324.0,0.01095002]
[1767542646766,0.0656946,91332.0,91325.0,0.0109499]
[1767542646965,0.001,91325.0,91323.0,0.01095014]
[1767542647170,0.06669967,91325.0,91318.0,0.02192]
[1767542647374,0.01160885,91324.0,91318.0,0.03287074]
[1767542647606,0.06569756,91328.0,91321.0,0.05475191]
[1767542647806,0.01094966,91327.0,91322.0,0.01095026]
[1767542648026,0.06569698,91329.0,91322.0,0.01095026]
[1767542648230,0.06569736,91328.0,91324.0,0.04575548]
[1767542648437,0.0656982,91327.0,91324.0,0.04575548]
[1767542648638,0.05474897,91326.0,91324.0,0.04575548]
[1767542648840,0.01094954,91328.0,91324.0,0.00036599]
[1767542649463,0.05474952,91325.0,91324.0,0.00036599]
[1767542649634,0.01094966,91327.0,91318.0,0.01095074]
[1767542649845,0.0109499,91325.0,91318.0,0.01095074]
[1767542650050,0.06555904,91325.0,91319.0,0.01095062]
[1767542650213,0.01094966,91327.0,91318.0,0.06570441]
[1767542650424,0.05474957,91325.0,91318.0,0.01095074]
[1767542650640,0.05474957,91325.0,91317.0,0.06570517]
[1767542650641,0.01095014,91323.0,91317.0,0.01095086]
[1767542650842,0.01095014,91323.0,91317.0,0.06570512]
[1767542651046,0.0109499,91325.0,91319.0,0.06570373]
[1767542651241,0.21899384,91327.0,91312.0,0.02192]
[1767542651572,0.01095074,91318.0,91312.0,0.08762817]
[1767542651786,0.06570229,91321.0,91318.0,0.001]
[1767542652183,0.0109505,91320.0,91314.0,0.01095122]
[1767542652390,0.0109505,91320.0,91313.0,0.01095134]
[1767542652391,0.01095062,91319.0,91313.0,0.01095134]
[1767542652586,0.01095122,91314.0,91306.0,0.01110338]
[1767542652793,0.02192,91319.0,91306.0,0.01110338]
[1767542652794,0.0109511,91315.0,91314.0,0.001]
[1767542652999,0.01095086,91317.0,91314.0,0.001]
[1767542653195,0.08762375,91319.0,91312.0,0.01095146]
[1767542653762,0.01095086,91317.0,91311.0,0.01095158]
[1767542653933,0.08762375,91319.0,91312.0,0.01095146]